bitfinex-derivatives/quotes_SOLF0:USTF0_20240920
["timestamp","ask_amount","ask_price","bid_price","bid_amount"]
[1726838757883,3.3635,148.65,148.61,3.3641]
[1726838758484,3.3637,148.64,148.61,3.3641]
[1726838759485,3.3635,148.65,148.61,3.3641]
[1726838759688,3.3635,148.65,148.62,3.364]
[1726838759889,3.3635,148.65,148.59,163.82660068]
[1726838760090,3.3635,148.65,148.61,3.3642]
[1726838760284,25.84,148.71,148.59,163.82660068]
[1726838760487,25.84,148.69,148.59,137.98660068]
[1726838760685,25.84,148.66,148.59,134.66]
[1726838761085,3.3645,148.6,148.59,134.66]
[1726838762591,3.3644,148.61,148.59,134.66]
[1726838763192,3.3644,148.61,148.54,134.64]
[1726838763382,25.84,148.66,148.54,160.48]
[1726838763787,25.84,148.66,148.58,3.3648]
[1726838763989,25.84,148.66,148.54,160.48]
[1726838764294,25.84,148.66,148.56,3.3653]
[1726838764487,3.3647,148.6,148.56,3.3653]
[1726838764892,25.84,148.66,148.56,3.3653]
[1726838765095,3.3647,148.6,148.56,3.3653]
[1726838765297,25.84,148.66,148.56,3.3653]
[1726838765488,25.84,148.64,148.54,134.64]
[1726838766088,25.84,148.61,148.54,134.64]
[1726838766586,3.3657,148.55,148.54,134.64]
[1726838767187,25.84,148.61,148.54,134.64]
[1726838767995,25.84,148.61,148.52,3.9758]
[1726838768393,25.84,148.61,148.51,3.44567869]
[1726838768594,25.84,148.61,148.49,28.5261]
[1726838769596,3.3652,148.57,148.49,28.5261]
[1726838770098,3.3652,148.57,148.53,3.3659]
[1726838770291,3.3652,148.57,148.49,28.5261]
[1726838770292,25.84,148.61,148.49,28.5261]
[1726838770895,25.84,148.61,148.51,3.3665]
[1726838771096,25.84,148.61,148.51,6.77727441]
[1726838771391,25.84,148.61,148.51,3.3665]
[1726838771596,6.7249,148.7,148.54,25.84]
[1726838771792,1.0,148.8,148.54,25.84]
[1726838771793,25.84,148.68,148.55,1.3008]
[1726838771997,3.3645,148.6,148.56,2.7259]
[1726838772296,25.84,148.66,148.57,3.3651]
[1726838772497,3.3644,148.61,148.57,3.3651]
[1726838772999,3.3644,148.61,148.58,3.365]
[1726838773194,3.3644,148.61,148.56,2.7259]
[1726838773195,25.84,148.68,148.56,28.5659]
[1726838773793,1.2281,148.71,148.61,25.84]
[1726838773999,1.0,148.8,148.64,3.3634]
[1726838774000,25.84,148.74,148.64,3.3634]
[1726838774202,3.363,148.67,148.64,3.3634]
[1726838774407,3.363,148.67,148.63,6.02953602]
[1726838774807,3.363,148.67,148.63,9.39323602]
[1726838775406,1.2279,148.79,148.63,2.7026]
[1726838775407,25.84,148.71,148.63,2.7026]
[1726838775903,25.84,148.73,148.63,6.13911167]
[1726838776107,25.84,148.73,148.63,2.7026]
[1726838776508,3.3626,148.69,148.65,3.3632]
[1726838777006,25.84,148.73,148.63,9.50348457]
[1726838777306,25.84,148.73,148.63,6.13978457]
[1726838777901,25.84,148.73,148.64,3.3635]
[1726838778111,25.84,148.73,148.63,6.13978457]
[1726838778315,3.3623,148.7,148.65,3.3632]
[1726838778509,1.2279,148.79,148.68,25.84]
[1726838778807,1.2279,148.79,148.69,25.84]
[1726838779010,1.2279,148.79,148.7,1.3885]
[1726838779507,3.3611,148.76,148.7,4.7506]
[1726838779703,3.3611,148.76,148.71,3.30732013]
[1726838779903,3.3613,148.75,148.7,4.1413]
[1726838780702,3.3613,148.75,148.7,7.5036]
[1726838781307,27.0679,148.79,148.7,4.1413]
[1726838782103,3.3613,148.75,148.7,4.1413]
[1726838782701,3.3613,148.75,148.7,7.5034]
[1726838782901,3.3614,148.74,148.7,4.1413]
[1726838783106,25.84,148.79,148.7,4.1413]
[1726838784807,25.84,148.79,148.7,7.5034]
[1726838785913,3.3615,148.74,148.7,4.1413]
[1726838786107,25.84,148.79,148.7,1.3885]
[1726838787112,25.84,148.76,148.67,134.58]
[1726838787817,25.84,148.74,148.67,134.58]
[1726838788210,3.3626,148.69,148.67,134.58]
[1726838791817,3.3626,148.69,148.65,4.7658]
[1726838792018,25.84,148.74,148.66,3.3631]
[1726838792214,25.84,148.76,148.65,1.4024]
[1726838792415,3.3615,148.74,148.7,3.3622]
[1726838792816,25.84,148.79,148.67,25.84]
[1726838793017,3.3617,148.73,148.69,3.3624]
[1726838793210,25.84,148.79,148.69,3.3624]
[1726838793816,25.84,148.79,148.67,25.84]
[1726838794421,25.84,148.79,148.69,3.3624]
[1726838794618,3.3617,148.73,148.69,3.3624]
[1726838795117,3.3619,148.72,148.68,3.3626]
[1726838795321,25.84,148.79,148.67,25.84]
[1726838795520,25.84,148.76,148.65,1.4024]
[1726838795725,3.3628,148.68,148.65,1.4024]
[1726838796017,25.84,148.74,148.55,3.28619528]
[1726838796225,3.3633,148.66,148.59,4.098]
[1726838796720,25.84,148.71,148.59,4.098]
[1726838796920,1.2271,148.73,148.59,4.098]
[1726838797522,25.84,148.74,148.59,4.098]
[1726838797924,3.3624,148.7,148.66,3.3631]
[1726838798126,25.84,148.74,148.64,3.34735212]
[1726838798325,3.3627,148.69,148.65,3.3634]
[1726838798727,25.84,148.74,148.64,3.37056725]
[1726838798919,3.3623,148.7,148.66,3.363]
[1726838799125,25.84,148.74,148.66,3.363]
[1726838799327,25.84,148.74,148.59,4.098]
[1726838799528,3.3626,148.69,148.65,3.3633]
[1726838799827,3.3626,148.69,148.59,4.098]
[1726838799828,25.84,148.76,148.64,25.84]
[1726838800022,3.3619,148.72,148.64,29.15370701]
[1726838800327,1.2271,148.77,148.64,29.15370701]
[1726838801128,1.2271,148.77,148.69,3.3625]
[1726838801336,1.2271,148.77,148.64,29.15370701]
[1726838801627,3.362,148.72,148.68,3.3626]
[1726838802032,1.2271,148.77,148.68,3.3626]
[1726838802229,1.2271,148.77,148.67,3.3629]
[1726838802530,1.2271,148.77,148.64,29.15370701]
[1726838802722,1.2271,148.77,148.62,25.84]
[1726838802723,25.84,148.74,148.62,25.84]
[1726838802927,25.84,148.74,148.63,3.3637]
[1726838803122,25.84,148.72,148.62,25.84]
[1726838803328,3.3633,148.66,148.62,25.84]
[1726838803530,25.84,148.72,148.59,29.938]
[1726838803834,25.84,148.7,148.59,4.098]
[1726838804033,1.2262,148.69,148.59,7.4627]
[1726838804635,3.364,148.63,148.59,7.4627]
[1726838804832,3.364,148.63,148.6,3.3645]
[1726838805232,3.3636,148.65,148.59,4.098]
[1726838805429,1.2262,148.69,148.59,4.098]
[1726838805627,1.2262,148.69,148.59,1.3444]
[1726838805628,25.84,148.67,148.59,1.3444]
[1726838805836,25.84,148.65,148.53,2.7861]
[1726838806031,25.84,148.65,148.54,3.38582677]
[1726838806432,25.84,148.65,148.53,4.1006]
[1726838806929,25.84,148.65,148.56,3.3653]
[1726838807331,3.3645,148.61,148.57,3.3652]
[1726838807531,25.84,148.68,148.54,25.84]
[1726838808437,25.84,148.68,148.58,3.3648]
[1726838808438,3.364,148.63,148.58,3.3648]
[1726838808736,3.3637,148.64,148.6,3.3645]
[1726838808937,25.84,148.68,148.56,25.84]
[1726838809335,3.3638,148.64,148.56,25.84]
[1726838809943,25.84,148.74,148.62,25.84]
[1726838810440,3.3625,148.7,148.65,3.3634]
[1726838810633,25.84,148.74,148.65,3.3634]
[1726838810831,25.84,148.74,148.64,3.3635]
[1726838811037,6.7224,148.75,148.63,1.3525]
[1726838811240,2.6086,148.77,148.63,1.3525]
[1726838811432,3.3638,148.64,148.59,3.3646]
[1726838811637,25.84,148.7,148.57,25.84]
[1726838812439,3.3636,148.65,148.57,25.84]
[1726838812937,25.84,148.7,148.56,2.6537]
[1726838813244,1.374,148.69,148.56,28.4937]
[1726838813443,3.3631,148.67,148.59,25.84]
[1726838813937,3.3631,148.67,148.63,3.3637]
[1726838814138,1.374,148.69,148.59,25.84]
[1726838814139,3.3632,148.66,148.59,25.84]
[1726838814543,3.3632,148.66,148.62,3.364]
[1726838815242,25.84,148.73,148.61,3.28689529]
[1726838815442,25.84,148.73,148.61,25.84]
[1726838815643,25.84,148.73,148.61,29.18982653]
[1726838815841,3.3626,148.69,148.61,29.18982653]
[1726838816544,3.3623,148.7,148.61,29.18982653]
[1726838816942,27.214,148.75,148.61,29.18982653]
[1726838817643,27.214,148.75,148.66,3.3631]
[1726838818246,3.3627,148.69,148.61,29.18982653]
[1726838818640,27.214,148.75,148.61,29.18982653]
[1726838818844,1.374,148.75,148.64,25.84]
[1726838819045,1.374,148.75,148.65,4.0419]
[1726838819549,25.84,148.78,148.69,3.3624]
[1726838820045,3.3617,148.73,148.69,3.3624]
[1726838820554,3.3619,148.72,148.68,3.3626]
[1726838820750,25.84,148.78,148.65,4.0419]
[1726838822546,3.3618,148.72,148.65,4.0419]
[1726838822747,25.84,148.78,148.65,4.0419]
[1726838822946,3.3624,148.7,148.66,3.3631]
[1726838823153,25.84,148.75,148.65,4.0419]
[1726838823549,3.3632,148.66,148.65,2.7198]
[1726838823847,25.84,148.72,148.65,1.3622]
[1726838824044,3.3631,148.67,148.65,1.3622]
[1726838824451,25.84,148.72,148.65,1.3622]
[1726838824944,3.363,148.67,148.65,1.3622]
[1726838826454,16.14,148.72,148.65,1.3622]
[1726838826951,3.3629,148.68,148.65,1.3622]
[1726838827453,16.14,148.72,148.65,1.3622]
[1726838827653,3.363,148.67,148.65,1.3622]
[1726838829849,16.14,148.74,148.65,1.3622]
[1726838830253,3.3623,148.7,148.65,1.3622]
[1726838830449,16.14,148.74,148.65,1.3622]
[1726838830645,16.14,148.71,148.65,1.3622]
[1726838831453,3.3629,148.68,148.65,1.3622]
[1726838832659,3.3629,148.68,148.65,4.7256]
[1726838832851,3.3625,148.69,148.65,1.3622]
[1726838834053,3.3625,148.69,148.65,4.7255]
[1726838834257,3.3628,148.68,148.65,1.3622]
[1726838834459,16.14,148.72,148.65,1.3622]
[1726838835060,16.14,148.74,148.65,1.3622]
[1726838835458,3.3627,148.69,148.65,4.7255]
[1726838836359,16.14,148.76,148.66,16.14]
[1726838836557,16.14,148.78,148.68,16.14]
[1726838838255,3.3615,148.74,148.7,3.3621]
[1726838839767,3.3616,148.73,148.69,9.45525759]
[1726838839961,16.14,148.78,148.69,2.6808]
[1726838841666,3.3619,148.72,148.69,2.6808]
[1726838842765,16.14,148.75,148.69,2.6808]
[1726838843557,16.14,148.75,148.66,16.14]
[1726838843756,3.3622,148.71,148.67,3.3628]
[1726838843965,3.3622,148.71,148.66,16.14]
[1726838844466,3.3622,148.71,148.68,3.3627]
[1726838844664,3.3619,148.72,148.68,3.3627]
[1726838844857,3.3619,148.72,148.69,3.42515977]
[1726838845261,16.14,148.77,148.68,16.14]
[1726838845464,16.14,148.75,148.66,16.14]
[1726838846065,3.3623,148.7,148.66,19.5031]
[1726838846367,16.14,148.75,148.66,19.5031]
[1726838846570,3.3624,148.7,148.66,19.5031]
[1726838846870,16.14,148.75,148.66,16.14]
[1726838847165,16.14,148.72,148.65,135.9222]
[1726838847566,3.3632,148.66,148.65,135.9222]
[1726838848969,3.3632,148.66,148.65,134.56]
[1726838849164,3.3632,148.66,148.62,1.3675]
[1726838849372,16.14,148.67,148.62,1.3675]
[1726838849566,16.14,148.67,148.58,16.14]
[1726838849772,3.3642,148.62,148.58,16.14]
[1726838850076,16.14,148.67,148.58,16.14]
[1726838850476,3.364,148.63,148.59,3.3647]
[1726838850674,3.364,148.63,148.58,16.14]
[1726838850874,3.364,148.63,148.58,19.5048]
[1726838851071,3.3637,148.64,148.58,16.14]
[1726838851977,16.14,148.7,148.6,16.14]
[1726838852172,16.14,148.7,148.62,16.14]
[1726838852473,16.14,148.7,148.62,19.56205646]
[1726838852767,16.14,148.7,148.62,16.14]
[1726838852974,16.14,148.7,148.61,1.3739]
[1726838853170,3.3638,148.64,148.61,1.3739]
[1726838853971,3.3634,148.65,148.61,4.714527]
[1726838854778,3.3634,148.65,148.61,8.078727]
[1726838856572,3.3633,148.66,148.62,3.364]
[1726838856775,17.469,148.73,148.63,16.14]
[1726838856970,17.469,148.73,148.64,1.3591]
[1726838857177,3.3631,148.67,148.64,1.3591]
[1726838857481,17.469,148.73,148.64,1.3591]
[1726838857682,3.3633,148.66,148.64,1.3591]
[1726838857976,16.14,148.71,148.64,1.3591]
[1726838858680,16.14,148.71,148.62,1.3287]
[1726838859679,3.3638,148.63,148.61,1.3739]
[1726838859883,16.14,148.69,148.61,1.3739]
[1726838860081,16.14,148.69,148.61,4.78832896]
[1726838860277,3.3635,148.65,148.61,4.7381]
[1726838860481,16.14,148.69,148.61,4.7381]
[1726838860677,3.3636,148.64,148.61,4.7381]
[1726838860875,16.14,148.69,148.61,1.3739]
[1726838861283,16.14,148.66,148.57,1.3591]
[1726838862183,16.14,148.64,148.57,1.3591]
[1726838862376,3.3648,148.59,148.57,1.3591]
[1726838862679,16.14,148.64,148.57,1.3591]
[1726838862880,3.3645,148.61,148.57,1.3591]
[1726838863281,3.3645,148.61,148.57,4.7242]
[1726838863681,16.14,148.67,148.58,16.14]
[1726838863879,16.14,148.67,148.6,3.3645]
[1726838864180,16.14,148.69,148.6,16.14]
[1726838864380,16.14,148.69,148.61,1.2858]
[1726838864580,16.14,148.69,148.62,3.3876375]
[1726838865392,16.14,148.69,148.61,1.2858]
[1726838865681,3.3628,148.68,148.64,3.3634]
[1726838866088,16.14,148.71,148.63,4.73750605]
[1726838866875,3.3631,148.67,148.63,8.10110605]
[1726838867281,16.14,148.71,148.63,4.73750605]
[1726838867785,3.3626,148.69,148.64,16.14]
[1726838867982,17.469,148.73,148.64,16.14]
[1726838868478,3.3624,148.7,148.66,3.3631]
[1726838868679,17.3679,148.77,148.68,16.14]
[1726838869082,3.362,148.72,148.68,16.14]
[1726838871485,3.362,148.71,148.68,16.14]
[1726838872496,3.362,148.71,148.68,17.5438]
[1726838872686,17.3679,148.77,148.68,17.5438]
[1726838873088,16.14,148.75,148.68,1.4038]
[1726838874295,3.3622,148.71,148.68,1.4038]
[1726838874895,3.3623,148.7,148.68,1.4038]
[1726838875494,6.7207,148.79,148.68,17.5438]
[1726838875688,16.14,148.76,148.66,16.14]
[1726838875888,3.3627,148.69,148.65,3.3634]
[1726838876797,3.3628,148.68,148.64,154.0635]
[1726838877096,16.14,148.73,148.64,150.7]
[1726838877293,16.14,148.71,148.64,134.56]
[1726838879096,3.3633,148.66,148.64,134.56]
[1726838879704,16.14,148.71,148.64,134.56]
[1726838880207,3.3632,148.66,148.64,134.56]
[1726838880409,16.14,148.73,148.65,16.14]
[1726838880608,16.14,148.73,148.65,17.4792]
[1726838881208,16.14,148.72,148.64,134.56]
[1726838882102,10.11601219,148.81,148.64,134.56]
[1726838882302,16.14,148.76,148.67,16.14]
[1726838883007,3.3619,148.72,148.68,3.3626]
[1726838883205,16.14,148.76,148.68,3.3626]
[1726838884100,16.14,148.76,148.7,3.3622]
[1726838884307,3.3613,148.75,148.69,16.14]
[1726838884510,16.14,148.78,148.69,17.4121]
[1726838884711,3.3614,148.74,148.69,17.4121]
[1726838885108,16.14,148.78,148.69,17.4121]
[1726838885315,3.3613,148.75,148.71,3.362]
[1726838885504,3.3613,148.75,148.71,19.502]
[1726838885708,3.3613,148.75,148.71,16.14]
[1726838886013,3.3613,148.75,148.71,19.502]
[1726838886210,3.3613,148.75,148.71,16.14]
[1726838886408,17.5324,148.8,148.73,3.3614]
[1726838886612,17.5324,148.8,148.71,16.14]
[1726838887315,3.3608,148.77,148.73,3.3615]
[1726838888019,3.3609,148.76,148.72,3.3617]
[1726838890417,17.5324,148.8,148.73,3.3614]
[1726838890621,17.5324,148.8,148.71,16.14]
[1726838891115,3.3611,148.76,148.72,3.3617]
[1726838891321,17.5324,148.8,148.71,16.14]
[1726838891723,16.14,148.78,148.71,16.14]
[1726838892219,3.3615,148.74,148.71,16.14]
[1726838893616,16.14,148.78,148.71,16.14]
[1726838893817,16.14,148.78,148.69,151.9521]
[1726838894223,16.14,148.78,148.7,6.73589669]
[1726838894824,3.3614,148.74,148.7,6.73589669]
[1726838896127,3.3617,148.73,148.7,3.37379669]
[1726838896322,16.14,148.78,148.69,17.4121]
[1726838897023,16.14,148.75,148.68,1.3706]
[1726838897227,16.14,148.75,148.67,16.14]
[1726838898022,3.3625,148.69,148.67,16.14]
[1726838898328,16.14,148.75,148.67,16.14]
[1726838898724,3.3623,148.7,148.67,19.5029]
[1726838899030,16.14,148.75,148.67,16.14]
[1726838899225,3.3624,148.7,148.67,16.14]
[1726838899927,3.3624,148.7,148.66,3.363]
[1726838899928,16.14,148.75,148.65,16.14]
[1726838900229,16.14,148.73,148.65,16.14]
[1726838900828,3.3631,148.67,148.63,23.504]
[1726838901231,16.14,148.69,148.61,150.66]
[1726838901534,3.3641,148.62,148.61,134.52]
[1726838902030,16.14,148.67,148.61,134.52]
[1726838902720,3.3637,148.64,148.61,134.52]
[1726838902924,16.14,148.67,148.61,134.52]
[1726838903120,1.355,148.68,148.61,134.52]
[1726838904528,16.14,148.69,148.61,137.96415982]
[1726838904729,16.14,148.7,148.61,154.10415982]
[1726838904926,16.14,148.7,148.61,150.66]
[1726838905130,16.14,148.7,148.61,16.14]
[1726838905527,16.14,148.7,148.61,19.5042]
[1726838907232,16.14,148.7,148.61,19.48253439]
[1726838907526,3.3636,148.65,148.61,19.48253439]
[1726838907934,16.14,148.68,148.61,19.48253439]
[1726838908427,1.3628,148.72,148.62,16.14]
[1726838908627,16.14,148.71,148.62,16.14]
[1726838908823,17.5412,148.73,148.65,3.3632]
[1726838909333,3.3625,148.69,148.65,3.3632]
[1726838909534,17.5412,148.73,148.64,19.5035]
[1726838910929,17.5412,148.73,148.64,16.14]
[1726838911237,3.3629,148.68,148.64,16.14]
[1726838911531,17.5412,148.73,148.65,3.3634]
[1726838911928,3.3626,148.69,148.65,3.3634]
[1726838912127,3.3626,148.69,148.64,16.14]
[1726838912323,3.3629,148.68,148.64,16.14]
[1726838912531,19.47030547,148.72,148.62,19.5574692]
[1726838912735,16.14,148.7,148.62,3.4174692]
[1726838913629,3.33030547,148.72,148.62,3.4174692]
[1726838913934,3.33030547,148.72,148.61,18.8051]
[1726838913935,17.5412,148.73,148.63,16.14]
[1726838914232,3.3629,148.68,148.64,3.42955187]
[1726838914933,3.3629,148.67,148.64,3.42955187]
[1726838915739,3.3632,148.66,148.64,3.42955187]
[1726838917038,3.363,148.67,148.64,3.42955187]
[1726838917336,16.14,148.71,148.64,6.79305187]
[1726838917531,16.14,148.71,148.64,3.42955187]
[1726838917736,17.5412,148.73,148.64,3.42955187]
[1726838917933,17.5412,148.73,148.64,6.79305187]
[1726838918133,3.3626,148.69,148.64,3.42955187]
[1726838918532,17.5412,148.73,148.64,3.42955187]
[1726838918734,3.3627,148.68,148.64,3.42955187]
[1726838919135,3.3633,148.66,148.61,18.8051]
[1726838919327,16.14,148.71,148.61,22.11577895]
[1726838919838,16.14,148.69,148.61,22.11577895]
[1726838920038,16.14,148.69,148.61,5.97577895]
[1726838920339,16.14,148.69,148.62,3.364]
[1726838920834,16.14,148.69,148.63,3.3638]
[1726838921132,16.14,148.71,148.63,16.14]
[1726838921335,1.4012,148.73,148.64,3.3635]
[1726838921336,3.3628,148.68,148.64,3.3635]
[1726838921636,3.3628,148.68,148.63,16.14]
[1726838921833,17.5412,148.73,148.63,16.14]
[1726838922037,3.3627,148.69,148.65,3.3633]
[1726838922338,17.5412,148.73,148.65,3.3633]
[1726838922939,3.3627,148.68,148.65,3.3633]
[1726838923142,3.3627,148.68,148.64,3.3635]
[1726838923737,16.14,148.71,148.64,3.3636]
[1726838924339,3.3629,148.68,148.64,3.3636]
[1726838925338,3.363,148.67,148.64,3.3636]
[1726838925737,3.363,148.67,148.63,19.5037]
[1726838926141,3.3632,148.66,148.63,19.5037]
[1726838926339,16.14,148.71,148.63,16.14]
[1726838926843,3.3634,148.66,148.63,16.14]
[1726838927346,3.3634,148.66,148.61,5.97577895]
[1726838927347,3.3635,148.65,148.61,22.11577895]
[1726838927937,3.3636,148.64,148.62,3.3639]
[1726838928342,16.14,148.69,148.61,25.47997895]
[1726838928542,3.3637,148.64,148.61,22.11577895]
[1726838928746,16.14,148.69,148.61,22.11577895]
[1726838928938,16.14,148.69,148.61,5.97577895]
[1726838929143,3.3637,148.64,148.61,9.33987895]
[1726838930443,16.14,148.69,148.61,9.33987895]
[1726838930646,16.14,148.69,148.61,5.97577895]
[1726838930941,3.364,148.63,148.61,5.97577895]
[1726838933747,3.3641,148.62,148.61,5.97577895]
[1726838934242,16.14,148.69,148.61,9.33997895]
[1726838935443,3.3634,148.65,148.61,5.97577895]
[1726838935651,17.4775,148.71,148.61,22.11577895]
[1726838936450,3.3633,148.66,148.61,22.11577895]
[1726838936949,16.14,148.68,148.61,5.97577895]
[1726838937547,3.3637,148.64,148.61,5.97577895]
[1726838937948,3.3637,148.64,148.52,16.14]
[1726838937949,16.14,148.66,148.51,3.3664]
[1726838938144,16.14,148.59,148.51,2.6531]
[1726838938546,3.3658,148.55,148.51,2.6531]
[1726838938941,16.14,148.59,148.51,2.6531]
[1726838939548,3.366,148.54,148.51,2.6531]
[1726838941253,3.3663,148.52,148.51,2.6531]
[1726838942852,3.3668,148.5,148.49,1.3903]
[1726838943349,16.14,148.53,148.48,3.31559806]
[1726838943350,3.3672,148.49,148.48,3.31559806]
[1726838943552,3.3672,148.49,148.45,3.3678]
[1726838943553,3.3672,148.49,148.45,1.3036]
[1726838944055,3.3672,148.49,148.45,4.69563933]
[1726838944249,16.14,148.53,148.45,4.69563933]
[1726838944250,3.3673,148.48,148.45,4.69563933]
[1726838944444,16.14,148.53,148.45,4.69563933]
[1726838944845,3.3676,148.47,148.45,4.69563933]
[1726838947459,3.3677,148.46,148.45,4.69563933]
[1726838951258,3.3679,148.45,148.42,3.3685]
[1726838951461,16.14,148.51,148.36,1.3433]
[1726838951462,16.14,148.48,148.36,1.3433]
[1726838951668,16.14,148.48,148.37,16.14]
[1726838951861,19.43167996,148.51,148.36,10.76030638]
[1726838951862,16.14,148.46,148.36,10.76030638]
[1726838952058,16.14,148.44,148.36,10.76030638]
[1726838952262,3.369,148.41,148.36,7.39050638]
[1726838952463,16.14,148.44,148.36,7.39050638]
[1726838952869,16.14,148.42,148.27,134.7]
[1726838953163,6.736,148.45,148.31,17.527]
[1726838953164,16.14,148.4,148.31,17.527]
[1726838953555,16.14,148.36,148.31,3.29100626]
[1726838953870,16.14,148.36,148.31,3.37319721]
[1726838954168,16.14,148.36,148.29,1.3438]
[1726838954556,16.14,148.36,148.3,3.38617062]
[1726838954757,16.14,148.34,148.29,1.3438]
[1726838955155,16.14,148.34,148.29,4.6385801]
[1726838955355,3.3711,148.31,148.29,4.6385801]
[1726838955658,3.3711,148.31,148.29,1.3438]
[1726838955963,16.14,148.34,148.29,1.3438]
[1726838956872,16.14,148.34,148.28,1.3362]
[1726838957367,3.3716,148.3,148.26,6.81873558]
[1726838957667,3.3716,148.3,148.26,3.3722]
[1726838957870,3.3716,148.29,148.25,3.3723]
[1726838958069,3.3716,148.29,148.26,3.43642495]
[1726838958265,16.14,148.3,148.26,3.43642495]
[1726838958466,3.3719,148.28,148.24,3.3726]
[1726838958766,3.3719,148.28,148.24,3.43440134]
[1726838959066,3.3716,148.29,148.25,3.3723]
[1726838959267,3.3716,148.29,148.26,3.40337268]
[1726838959564,3.3716,148.29,148.26,6.77557268]
[1726838959869,3.3716,148.29,148.26,3.3722]
[1726838960268,3.3716,148.29,148.26,6.68754569]
[1726838960766,3.3718,148.28,148.26,3.31534569]
[1726838960963,3.3718,148.28,148.25,3.3724]
[1726838961575,3.3718,148.28,148.26,3.32074467]
[1726838962371,16.14,148.3,148.26,3.32074467]
[1726838962667,16.14,148.3,148.21,20.1601]
[1726838962866,3.3717,148.29,148.21,20.1601]
[1726838963458,3.3718,148.28,148.25,3.3724]
[1726838963664,3.3718,148.28,148.26,3.35481223]
[1726838964060,16.14,148.3,148.26,3.35481223]
[1726838964266,3.3716,148.29,148.26,3.3722]
[1726838964467,16.14,148.3,148.26,3.33457023]
[1726838964768,16.14,148.3,148.21,20.1601]
[1726838964967,3.3718,148.28,148.21,20.1601]
[1726838965166,16.14,148.3,148.21,20.1601]
[1726838966077,3.3722,148.27,148.23,3.3727]
[1726838966375,3.3722,148.27,148.21,20.1601]
[1726838966577,16.14,148.3,148.21,20.1601]
[1726838966964,3.3723,148.26,148.21,4.0201]
[1726838967478,16.14,148.29,148.21,4.0201]
[1726838967671,16.14,148.29,148.22,3.373]
[1726838967870,16.14,148.29,148.22,6.80934032]
[1726838968274,3.3724,148.26,148.22,6.80934032]
[1726838968980,3.3725,148.25,148.22,6.80934032]
[1726838969671,3.3723,148.26,148.23,3.3729]
[1726838969876,0.9427,148.32,148.22,3.43634032]
[1726838970079,3.372,148.28,148.24,3.3727]
[1726838970278,16.14,148.31,148.24,3.33164642]
[1726838970478,16.14,148.29,148.21,20.1601]
[1726838970673,3.3724,148.26,148.21,20.1601]
[1726838971074,3.3724,148.26,148.21,23.54404062]
[1726838971282,3.3724,148.26,148.23,3.3729]
[1726838971671,6.74,148.36,148.23,16.14]
[1726838971976,16.14,148.33,148.26,3.3721]
[1726838972275,16.14,148.33,148.23,16.14]
[1726838972276,3.3719,148.28,148.23,16.14]
[1726838972480,3.3719,148.28,148.25,3.3723]
[1726838973086,3.3721,148.27,148.24,3.3727]
[1726838974378,16.14,148.31,148.25,3.3723]